fUSD/lending_fUSD_20250208
["ID","MTS","AMOUNT","RATE_DAILY","PERIOD"]
[352337427,1739045454049,-756.52,0.00010955,2]
[352337428,1739045454058,-500.0,0.00010955,2]
[352337429,1739045454068,-841.947186,0.00010955,2]
[352337430,1739045454238,-161.399216,0.00010955,2]
[352337431,1739045454254,-500.0,0.00010955,2]
[352337432,1739045454264,-500.0,0.00010955,2]
[352337433,1739045454274,-649.17,0.00010955,2]
[352337434,1739045454284,-883.869385,0.00010955,2]
[352337435,1739045454294,-618.96,0.00010955,2]
[352337436,1739045454303,-500.0,0.00010955,2]
[352337437,1739045454312,-529.9,0.00010955,2]
[352337438,1739045454322,-500.0,0.00010955,2]
[352337439,1739045454331,-675.64,0.00010955,2]
[352337440,1739045454341,-500.0,0.00010955,2]
[352337441,1739045454351,-543.33,0.00010955,2]
[352337442,1739045454361,-345.94,0.00010955,2]
[352337443,1739045454370,-500.0,0.00010955,2]
[352337444,1739045454379,-564.73,0.00010955,2]
[352337445,1739045454389,-559.83,0.00010955,2]
[352337446,1739045454398,-500.0,0.00010955,2]
[352337447,1739045454407,-1079.27,0.00010955,2]
[352337448,1739045454417,-627.44,0.00010955,2]
[352337449,1739045454426,-555.39,0.00010955,2]
[352337450,1739045454435,-1024.9,0.00010955,2]
[352337451,1739045454446,-500.0,0.00010955,2]
[352337452,1739045454455,-500.0,0.00010955,2]
[352337453,1739045454465,-566.38,0.00010955,2]
[352337454,1739045454476,-151.71,0.00010955,2]
[352337455,1739045454485,-800.56,0.00010955,2]
[352337456,1739045454496,-519.12,0.00010955,2]
[352337457,1739045454507,-641.44,0.00010955,2]
[352337458,1739045454517,-500.0,0.00010955,2]
[352337459,1739045454527,-500.0,0.00010955,2]
[352337460,1739045454537,-508.41,0.00010955,2]
[352337461,1739045454547,-704.95,0.00010955,2]
[352337462,1739045454556,-713.16,0.00010955,2]
[352337463,1739045454566,-500.0,0.00010955,2]
[352337464,1739045454575,-577.92,0.00010955,2]
[352337465,1739045454585,-803.08,0.00010955,2]
[352337466,1739045454595,-612.81,0.00010955,2]
[352337467,1739045454605,-1279.03,0.00010955,2]
[352337468,1739045454615,-500.0,0.00010955,2]
[352337469,1739045454625,-1063.48,0.00010955,2]
[352337470,1739045454635,-500.0,0.00010955,2]
[352337471,1739045454644,-530.24,0.00010955,2]
[352337472,1739045454654,-603.88,0.00010955,2]
[352337473,1739045454664,-677.48,0.00010955,2]
[352337474,1739045454674,-1278.27,0.00010955,2]
[352337475,1739045454684,-189.55,0.00010955,2]
[352337476,1739045454693,-1000.42,0.00010955,2]
[352337477,1739045454703,-500.0,0.00010955,2]
[352337478,1739045454712,-664.4,0.00010955,2]
[352337479,1739045454724,-500.0,0.00010955,2]
[352337480,1739045454735,-571.81,0.00010955,2]
[352337481,1739045454745,-989.47,0.00010955,2]
[352337482,1739045454755,-1596.25,0.00010955,2]
[352337483,1739045454765,-553.0,0.00010955,2]
[352337484,1739045454775,-1310.5,0.00010955,2]
[352337485,1739045454785,-2871.76,0.00010955,2]
[352337486,1739045454795,-1160.42,0.00010955,2]
[352337487,1739045454806,-917.51,0.00010955,2]
[352337488,1739045454816,-899.03,0.00010955,2]
[352337489,1739045454825,-500.0,0.00010955,2]
[352337490,1739045454835,-773.62,0.00010955,2]
[352337491,1739045454845,-1347.0,0.00010955,2]
[352337492,1739045454856,-743.17,0.00010955,2]
[352337493,1739045454866,-881.83,0.00010955,2]
[352337494,1739045454876,-500.0,0.00010955,2]
[352337495,1739045454886,-1246.42,0.00010955,2]
[352337496,1739045454895,-1046.85,0.00010955,2]
[352337497,1739045454905,-500.0,0.00010955,2]
[352337498,1739045454914,-782.2,0.00010955,2]
[352337499,1739045454924,-1385.47,0.00010955,2]
[352337500,1739045454933,-1328.22,0.00010955,2]
[352337501,1739045454943,-596.15,0.00010955,2]
[352337502,1739045454954,-1382.25,0.00010955,2]
[352337503,1739045454963,-1293.42,0.00010955,2]
[352337504,1739045454973,-626.97,0.00010955,2]
[352337505,1739045454983,-1264.98,0.00010955,2]
[352337506,1739045454993,-500.0,0.00010955,2]
[352337507,1739045455003,-1255.74,0.00010955,2]
[352337508,1739045455013,-1988.02,0.00010955,2]
[352337509,1739045455023,-667.16,0.00010955,2]
[352337510,1739045455033,-400.51070294,0.00010955,2]
[352337511,1739045455043,-500.0,0.00010955,2]
[352337512,1739045455052,-993.75,0.00010955,2]
[352337513,1739045455062,-995.03,0.00010955,2]
[352337514,1739045455071,-665.6,0.00010955,2]
[352337515,1739045455081,-625.25,0.00010955,2]
[352337516,1739045455091,-1130.35,0.00010955,2]
[352337517,1739045455101,-757.96,0.00010955,2]
[352337518,1739045455111,-1548.22,0.00010955,2]
[352337519,1739045455125,-1882.42,0.00010955,2]
[352337520,1739045455134,-2130.84,0.00010955,2]
[352337521,1739045455144,-867.7,0.00010955,2]
[352337522,1739045455154,-562.92,0.00010955,2]
[352337523,1739045455163,-893.62,0.00010955,2]
[352337524,1739045455172,-527.94,0.00010955,2]
[352337525,1739045455182,-635.75,0.00010955,2]
[352337526,1739045455191,-500.0,0.00010955,2]
[352337527,1739045455203,-500.0,0.00010955,2]
[352337528,1739045455213,-653.15,0.00010955,2]
[352337529,1739045455223,-695.11,0.00010955,2]
[352337530,1739045455232,-500.0,0.00010955,2]
[352337531,1739045455241,-500.0,0.00010955,2]
[352337532,1739045455251,-627.42,0.00010955,2]
[352337533,1739045455261,-500.0,0.00010955,2]
[352337534,1739045455271,-902.58,0.00010955,2]
[352337535,1739045455280,-1121.08,0.00010955,2]
[352337536,1739045455289,-500.0,0.00010955,2]
[352337537,1739045455298,-500.0,0.00010955,2]
[352337538,1739045455308,-500.0,0.00010955,2]
[352337539,1739045455317,-621.83,0.00010955,2]
[352337540,1739045455327,-808.74,0.00010955,2]
[352337541,1739045455336,-500.0,0.00010955,2]
[352337542,1739045455346,-500.0,0.00010956,2]
[352337543,1739045455356,-500.0,0.00010956,2]
[352337544,1739045455365,-500.0,0.00010956,2]
[352337545,1739045455374,-500.0,0.00010956,2]
[352337546,1739045455383,-531.28,0.00010956,2]
[352337547,1739045455393,-305.37839899,0.00010956,2]
[352337548,1739045455402,-589.42,0.00010956,2]
[352337549,1739045455411,-500.0,0.00010956,2]
[352337550,1739045455421,-500.0,0.00010956,2]
[352337551,1739045455430,-576.86,0.00010956,2]
[352337552,1739045455439,-515.82,0.00010956,2]
[352337553,1739045455447,-648.95,0.00010956,2]
[352337554,1739045455457,-500.0,0.00010956,2]
[352337555,1739045455467,-500.0,0.00010956,2]
[352337556,1739045455476,-500.0,0.00010956,2]
[352337557,1739045455486,-500.0,0.00010956,2]
[352337558,1739045455496,-500.0,0.00010956,2]
[352337559,1739045455506,-500.0,0.00010956,2]
[352337560,1739045455515,-500.0,0.00010956,2]
[352337561,1739045455525,-770.3,0.00010956,2]
[352337562,1739045455534,-500.0,0.00010956,2]
[352337563,1739045455543,-622.01,0.00010956,2]
[352337564,1739045455552,-500.0,0.00010956,2]
[352337565,1739045455561,-500.0,0.00010956,2]
[352337566,1739045455570,-500.0,0.00010956,2]
[352337567,1739045455580,-500.0,0.00010956,2]
[352337568,1739045455589,-500.0,0.00010956,2]
[352337569,1739045455599,-500.0,0.00010956,2]
[352337570,1739045455608,-553.5,0.00010956,2]
[352337571,1739045455618,-500.0,0.00010956,2]
[352337572,1739045455627,-500.0,0.00010956,2]
[352337573,1739045455636,-629.39528019,0.00010956,2]
[352337574,1739045455646,-500.0,0.00010956,2]
[352337575,1739045455656,-500.0,0.00010956,2]
[352337576,1739045455665,-651.34,0.00010956,2]
[352337577,1739045455674,-510.81,0.00010956,2]
[352337578,1739045455684,-500.0,0.00010956,2]
[352337579,1739045455693,-566.03,0.00010956,2]
[352337580,1739045455703,-553.02,0.00010956,2]
[352337581,1739045455712,-575.57,0.00010956,2]
[352337582,1739045455722,-500.0,0.00010956,2]
[352337583,1739045455731,-500.0,0.00010956,2]
[352337584,1739045455740,-500.0,0.00010956,2]
[352337585,1739045455749,-500.0,0.00010956,2]
[352337586,1739045455759,-537.32,0.00010956,2]
[352337587,1739045455768,-500.0,0.00010956,2]
[352337588,1739045455778,-1075.2,0.00010956,2]
[352337589,1739045455787,-500.0,0.00010956,2]
[352337590,1739045455797,-500.0,0.00010956,2]
[352337591,1739045455807,-744.75,0.00010956,2]
[352337592,1739045455817,-500.0,0.00010956,2]
[352337593,1739045455827,-1161.36,0.00010956,2]
[352337594,1739045455836,-976.67,0.00010956,2]
[352337595,1739045455846,-966.6,0.00010956,2]
[352337596,1739045455856,-500.0,0.00010956,2]
[352337597,1739045455868,-2087.17,0.00010956,2]
[352337598,1739045455878,-547.99,0.00010956,2]
[352337599,1739045455889,-639.1,0.00010956,2]
[352337600,1739045455899,-3399.75,0.00010956,2]
[352337601,1739045455909,-530.88,0.00010956,2]
[352337602,1739045455919,-886.55,0.00010956,2]
[352337603,1739045455928,-1018.61,0.00010956,2]
[352337604,1739045455938,-580.72,0.00010956,2]
[352337605,1739045455948,-669.78,0.00010956,2]
[352337606,1739045455957,-637.52,0.00010956,2]
[352337607,1739045455967,-500.0,0.00010956,2]
[352337608,1739045455977,-1185.58,0.00010956,2]
[352337609,1739045455988,-500.0,0.00010956,2]
[352337610,1739045455998,-538.66322518,0.00010956,2]
[352337611,1739045456009,-834.2,0.00010956,2]
[352337612,1739045456019,-703.74,0.00010956,2]
[352337613,1739045456029,-500.0,0.00010956,2]
[352337614,1739045456039,-882.86,0.00010956,2]
[352337615,1739045456050,-1000.74,0.00010956,2]
[352337616,1739045456059,-638.94,0.00010956,2]
[352337617,1739045456069,-1000.0,0.00010956,2]
[352337618,1739045456079,-500.0,0.00010956,2]
[352337619,1739045456089,-792.57,0.00010956,2]
[352337620,1739045456100,-517.78,0.00010956,2]
[352337621,1739045456109,-840.06,0.00010956,2]
[352337622,1739045456119,-657.71,0.00010956,2]
[352337623,1739045456133,-912.76,0.00010956,2]
[352337624,1739045456142,-500.0,0.00010956,2]
[352337625,1739045456152,-500.0,0.00010956,2]
[352337626,1739045456162,-682.37,0.00010956,2]
[352337627,1739045456172,-500.0,0.00010957,2]
[352337628,1739045456182,-500.0,0.00010957,2]
[352337629,1739045456192,-500.0,0.00010957,2]
[352337630,1739045456201,-500.0,0.00010957,2]
[352337631,1739045456211,-150.0,0.00010957,2]
[352337632,1739045456222,-500.0,0.00010957,2]
[352337633,1739045456231,-500.0,0.00010957,2]
[352337634,1739045456241,-500.0,0.00010957,2]
[352337635,1739045456250,-500.0,0.00010957,2]
[352337636,1739045456260,-151.0,0.00010959,2]
[352337637,1739045456269,-151.0,0.00010959,2]
[352337638,1739045456279,-150.0,0.00010959,2]
[352337639,1739045456288,-150.0,0.00010961,2]
[352337640,1739045456298,-150.0,0.00010962,2]
[352337641,1739045456307,-150.0,0.00010963,2]
[352337642,1739045456317,-150.0,0.00010963,2]
[352337643,1739045456326,-150.0,0.00010966,2]
[352337644,1739045456336,-150.0,0.0001097,2]
[352337645,1739045456346,-150.0,0.00010972,2]
[352337646,1739045456356,-500.0,0.00010973,2]
[352337647,1739045456365,-150.0,0.00010975,2]
[352337648,1739045456375,-150.0,0.00010976,2]
[352337649,1739045456385,-150.0,0.00010979,2]
[352337650,1739045456394,-150.0,0.00010981,2]
[352337651,1739045456403,-150.0,0.00010984,2]
[352337652,1739045456412,-297.53510741,0.00010986,2]
[352337653,1739045456422,-150.0,0.00010988,2]
[352337654,1739045456431,-151.0,0.0001099,2]
[352337655,1739045456441,-277.0517074,0.00010991,2]
[352337656,1739045456450,-340.5458549,0.00010991,2]
[352337657,1739045456460,-340.5458549,0.00010992,2]
[352337658,1739045456470,-340.5458549,0.00010992,2]
[352337659,1739045456480,-340.5458549,0.00010992,2]
[352337660,1739045456489,-340.5458549,0.00010992,2]
[352337661,1739045456499,-150.0,0.00010993,2]
[352337662,1739045456509,-500.0,0.00010994,2]
[352337663,1739045456518,-145941.38541273,0.00010995,2]
[352337664,1739045456829,-285.54618339,0.00010995,2]
[352337665,1739045456841,-527.21886762,0.00010995,2]
[352337666,1739045457116,-21152.13128997,0.00010995,2]
[352337667,1739045457129,-253.0,0.00010996,2]
[352337668,1739045457139,-420.0,0.00010996,2]
[352337669,1739045457148,-151.0,0.00010998,2]
[352337670,1739045457157,-2348.4968396,0.00010999,2]
[352337671,1739045457166,-662.15,0.00010999,2]
[352337672,1739045457178,-500.0,0.00010999,2]
[352337673,1739045457187,-500.0,0.00010999,2]
[352337674,1739045457198,-500.0,0.00010999,2]
[352337675,1739045457208,-500.0,0.00010999,2]
[352337676,1739045457217,-500.0,0.00010999,2]
[352337677,1739045457227,-500.0,0.00010999,2]
[352337678,1739045457237,-500.0,0.00010999,2]
[352337679,1739045457246,-500.0,0.00010999,2]
[352337680,1739045457255,-500.0,0.00010999,2]
[352337681,1739045457264,-500.0,0.00010999,2]
[352337682,1739045457273,-500.0,0.00010999,2]
[352337683,1739045457283,-298.77,0.00010999,2]
[352337684,1739045457292,-300.0,0.00010999,2]
[352337685,1739045457301,-300.0,0.00010999,2]
[352337686,1739045457310,-300.0,0.00010999,2]
[352337687,1739045457320,-666.0,0.00010999,2]
[352337688,1739045457329,-300.0,0.00010999,2]
[352337689,1739045457338,-202.92187043,0.00010999,2]
[352337690,1739045457350,-97.07812957,0.00010999,2]
[352337691,1739045457360,-260.89403752,0.00010999,2]
[352337692,1739045457369,-300.0,0.00010999,2]
[352337693,1739045457378,-300.0,0.00010999,2]
[352337694,1739045457388,-489.49039929,0.00011,3]
[352337695,1739045457397,-14.16809333,0.00011,2]
[352337696,1739045457409,-480.630005,0.00011,2]
[352337697,1739045457420,-765.572688,0.00011,2]
[352337698,1739045457432,-559.60816901,0.00011,2]
[352337699,1739045457765,-500.0,0.00010133,2]
[352337700,1739045457774,-500.0,0.0001027,2]
[352337701,1739045457784,-7859.39332455,0.00011,2]
[352337702,1739045457793,-65.54235575,0.00011,3]
[352337703,1739045457804,-337.80927,0.00011,3]
[352337704,1739045457827,-500.0,0.00010407,2]
[352337705,1739045457837,-496.40376361,0.00011,3]
[352337706,1739045457850,-384.50318454,0.00011,3]
[352337707,1739045457866,-4998.0,0.00011,3]
[352337708,1739045457878,-459.58986104,0.00011,3]
[352337709,1739045457889,-3690.36352469,0.00011,3]
[352337710,1739045457901,-6062.64759531,0.00011,3]
[352337711,1739045457913,-514.56855538,0.00011,3]
[352337712,1739045457925,-18726.79579395,0.00011,3]
[352337713,1739045457944,-9465.377338,0.00011,3]
[352337714,1739045457955,-533.59496,0.00011,3]
[352337715,1739045457966,-4356.0,0.00011,3]
[352337718,1739045819563,500.0,0.0002,120]
[352337719,1739045819808,500.0,0.0002,120]
[352337720,1739045820071,500.0,0.0002,120]
[352337721,1739045820323,500.0,0.0002,120]
[352337722,1739045950579,-2182.56,0.00016438,60]
[352337723,1739045950607,-2182.56,0.00016438,60]
[352337724,1739045950634,-2182.56,0.00016438,60]
[352337725,1739045950661,-2182.56,0.00016438,60]
[352337726,1739045950687,-2182.56,0.00016438,60]
[352337727,1739045950715,-2182.56,0.00016438,60]
[352337728,1739045950742,-2182.56,0.00016438,60]
[352337729,1739045950769,-2182.56,0.00016438,60]
[352337730,1739045950797,-2182.56,0.00016438,60]
[352337731,1739045950824,-2182.56,0.00016438,60]
[352337732,1739045950851,-2182.56,0.00016438,60]
[352337733,1739045950877,-2182.56,0.00016438,60]
[352337734,1739045950904,-2182.56,0.00016438,60]
[352337735,1739045950932,-2182.56,0.00016438,60]
[352337736,1739045950960,-2182.56,0.00016438,60]
[352337737,1739045950987,-2182.56,0.00016438,60]
[352337738,1739045951015,-2182.56,0.00016438,60]
[352337739,1739045951047,-2182.56,0.00016438,60]
[352337740,1739045951075,-2182.56,0.00016438,60]
[352337741,1739045951103,-2182.56,0.00016438,60]
[352337742,1739045951131,-2182.56,0.00016438,60]
[352337743,1739045951159,-2182.56,0.00016438,60]
[352337744,1739045951187,-2182.56,0.00016438,60]
[352337745,1739045951215,-2182.63577324,0.00016438,60]
[352337746,1739045951276,-2000.0,0.00020027,120]
[352337747,1739045951304,-2000.0,0.00020027,120]
[352337748,1739045951336,-150.0,0.00020051,120]
[352337749,1739045951364,-2000.0,0.00020055,120]
[352337750,1739045951392,-2000.0,0.00020055,120]
[352337751,1739045951421,-150.0,0.0002006,120]
[352337752,1739045951453,-2000.0,0.00020082,120]
[352337753,1739045951482,-2000.0,0.00020082,120]
[352337754,1739045951510,-2000.0,0.0002011,120]
[352337755,1739045951538,-2000.0,0.0002011,120]
[352337756,1739045951570,-2000.0,0.00020137,120]
[352337757,1739045951597,-2000.0,0.00020137,120]
[352337758,1739045951625,-2000.0,0.00020164,120]
[352337759,1739045951653,-2000.0,0.00020164,120]
[352337760,1739045951680,-2000.0,0.00020192,120]
[352337761,1739045951708,-2000.0,0.00020192,120]
[352337762,1739045951736,-2000.0,0.00020219,120]
[352337763,1739045951764,-2000.0,0.00020219,120]
[352337764,1739045951791,-2000.0,0.00020247,120]
[352337765,1739045951819,-2000.0,0.00020247,120]
[352337766,1739045951846,-2000.0,0.00020274,120]
[352337767,1739045951877,-2000.0,0.00020274,120]
[352337768,1739045951907,-150.0,0.00020291,120]
[352337769,1739045951939,-150.0,0.00020611,120]
[352337770,1739045951980,-150.0,0.00020792,120]
[352337771,1739045952010,-150.0,0.00020948,120]
[352337772,1739045952040,-150.0,0.00021035,120]
[352337773,1739045952070,-150.0,0.00021039,120]
[352337774,1739045952099,-150.0,0.0002105,120]
[352337775,1739045952129,-150.0,0.00021359,120]
[352337776,1739045952157,-150.0,0.00021453,120]
[352337777,1739045952189,-150.0,0.00021699,120]
[352337778,1739045952217,-150.0,0.00021704,120]
[352337779,1739045952245,-150.0,0.0002186,120]
[352337780,1739045952273,-150.0,0.00021886,120]
[352337781,1739045952300,-531.93668272,0.00021917,120]
[352337782,1739045952333,-1016.75258041,0.00022,120]
[352337783,1739045952672,-250.0,0.00022,120]
[352337784,1739045952702,-20100.0,0.00022,120]
[352337785,1739045952732,-364.93260033,0.00022739,120]
[352337786,1739045952761,-269.769173,0.00022999,120]
[352337787,1739045952788,-2000.0,0.00022999,120]
[352337788,1739045952816,-555.714329,0.00022999,120]
[352337789,1739045952843,-258.340506,0.00022999,120]
[352337790,1739045952870,-2192.18569858,0.00023,120]
[352337791,1739045952901,-1509.26714911,0.0002301,120]
[352337792,1739045952934,-250.0,0.00024,120]
[352337793,1739045952962,-173.21294558,0.00024,120]
[352337794,1739045952989,-37813.52236134,0.00024,120]
[352337795,1739045953017,-2000.0,0.00024499,120]
[352337796,1739045953044,-20000.0,0.0002466,120]
[352337797,1739045953072,-428.0,0.0002467,120]
[352337798,1739045953097,-428.0,0.0002467,120]
[352337799,1739045953124,-428.0,0.0002468,120]
[352337800,1739045953151,-428.0,0.0002468,120]
[352337801,1739045953177,-428.0,0.0002468,120]
[352337802,1739045953203,-428.7,0.0002468,120]
[352337803,1739045953230,-428.0,0.0002469,120]
[352337804,1739045953256,-428.0,0.0002469,120]
[352337805,1739045953281,-428.0,0.0002469,120]
[352337806,1739045953309,-428.0,0.0002469,120]
[352337807,1739045953337,-20207.573451,0.000248,120]
[352337808,1739045953371,-2791594.57674969,0.00025,120]
[352337809,1739045958942,-3000000.0,0.00025,120]
[352337810,1739045962712,-3000000.0,0.00025,120]
[352337811,1739045974524,-3000000.0,0.00025,120]
[352337812,1739045979414,-3000000.0,0.00025,120]
[352337813,1739046032385,-8000000.0,0.00025,120]
[352337815,1739046139401,-8000000.0,0.00025,120]
[352337816,1739046303157,1000.14833095,0.0002,120]
[352337817,1739046330709,150.0,0.00019128,120]
[352337818,1739046331999,719.74778255,0.0002,120]
[352337819,1739046354640,4182.87886414,6.94e-05,2]
[352337820,1739046355539,177.18587675,0.00017,120]
[352337822,1739046390717,150.0,0.00016735,120]
[352337827,1739046448054,2297.56,0.0002,120]
[352337828,1739046448291,2297.56,0.0002,120]
[352337829,1739046448596,2297.56,0.0002,120]
[352337830,1739046448885,2297.56,0.0002,120]
[352337831,1739046449168,2297.56,0.0002,120]
[352337832,1739046449391,2297.56,0.0002,120]
[352337833,1739046449661,2297.56,0.0002,120]
[352337834,1739046449954,2297.56,0.0002,120]
[352337835,1739046450835,2297.56,0.0002,120]
[352337836,1739046450881,150.0,0.00018627,120]
[352337837,1739046450923,2297.56,0.0002,120]
[352337838,1739046451466,2297.56,0.0002,120]
[352337839,1739046451736,2297.56,0.0002,120]
[352337840,1739046452037,2297.56,0.0002,120]
[352337841,1739046452295,2297.56,0.0002,120]
[352337842,1739046452543,2297.56,0.0002,120]
[352337843,1739046452876,2297.56,0.0002,120]
[352337844,1739046453148,2297.56,0.0002,120]
[352337845,1739046453426,2297.56,0.0002,120]
[352337846,1739046453673,2297.56,0.0002,120]
[352337847,1739046453907,2297.56,0.0002,120]
[352337848,1739046454283,2297.56,0.0002,120]
[352337849,1739046454531,2297.56,0.0002,120]
[352337850,1739046454842,2297.56,0.0002,120]
[352337851,1739046455119,2297.77088216,0.0002,120]
[352337852,1739046465303,718.04633622,0.0002,120]
[352337853,1739046467992,259.52525951,0.0002,120]
[352337854,1739046510759,150.0,0.0001991,120]
[352337855,1739046514537,185.53240027,0.0002,120]
[352337856,1739046523309,427.13573879,0.0001,120]
[352337857,1739046523872,306.43494488,0.0002,120]
[352337875,1739046631760,-865.97,8.219e-05,2]
[352337876,1739046631772,-230.735504,8.857e-05,2]
[352337877,1739046631818,-669.264496,8.857e-05,2]
[352337878,1739046631828,-2502.69420636,9e-05,2]
[352337879,1739046631837,-250.0,9.201e-05,2]
[352337880,1739046631847,-644.65,9.229e-05,2]
[352337881,1739046631857,-327.48,9.229e-05,2]
[352337882,1739046631866,-162.86,9.387e-05,2]
[352337883,1739046631877,-1000.0,9.402e-05,2]
[352337884,1739046631887,-241.97,9.459e-05,2]
[352337885,1739046631898,-222.0,9.93e-05,2]
[352337886,1739046631913,-152.47129764,9.953e-05,2]
[352337887,1739046631942,-365.66549,9.953e-05,2]
[352337888,1739046631957,-81.86321236,9.953e-05,2]
[352337889,1739046631966,-300.0,9.998e-05,2]
[352337890,1739046631976,-511.08,9.999e-05,2]
[352337891,1739046631986,-553.95,9.999e-05,2]
[352337892,1739046631995,-500.0,9.999e-05,2]
[352337893,1739046632006,-940.84,9.999e-05,2]
[352337894,1739046632016,-620.56,9.999e-05,2]
[352337895,1739046632025,-500.0,9.999e-05,2]
[352337896,1739046632034,-500.0,9.999e-05,2]
[352337897,1739046632043,-1036.21,9.999e-05,2]
[352337898,1739046632052,-565.92,9.999e-05,2]
[352337899,1739046632061,-544.04,9.999e-05,2]
[352337900,1739046632071,-508.49,9.999e-05,2]
[352337901,1739046632080,-1246.18,9.999e-05,2]
[352337902,1739046632089,-500.0,9.999e-05,2]
[352337903,1739046632098,-502.96,9.999e-05,2]
[352337904,1739046632108,-500.0,9.999e-05,2]
[352337905,1739046632118,-500.0,9.999e-05,2]
[352337906,1739046632127,-500.0,9.999e-05,2]
[352337907,1739046632137,-500.0,9.999e-05,2]
[352337908,1739046632146,-396.42619508,9.999e-05,2]
[352337909,1739046632155,-500.0,9.999e-05,2]
[352337910,1739046632164,-90777.97277634,0.0001,2]
[352337912,1739046632175,-340.97585375,0.0001,2]
[352337916,1739046632197,-245828.37619021,0.0001,2]
[352337918,1739046632206,-210.24832291,0.0001,2]
[352337920,1739046632216,-750.36,0.00010009,2]
[352337922,1739046632225,-1131.43,0.00010009,2]
[352337924,1739046632234,-29999.99,0.00010009,2]
[352337926,1739046632243,-9999.99,0.00010009,2]
[352337927,1739046632252,-222.0,0.0001013,2]
[352337929,1739046632261,-80267.14825111,0.00010133,2]
[352337931,1739046632270,-500.0,0.00010133,2]
[352337933,1739046632278,-500.0,0.00010133,2]
[352337935,1739046632288,-500.0,0.00010133,2]
[352337937,1739046632297,-500.0,0.00010133,2]
[352337939,1739046632306,-500.0,0.00010133,2]
[352337941,1739046632315,-374.78719865,0.00010133,2]
[352337943,1739046632323,-500.0,0.00010133,2]
[352337945,1739046632334,-500.0,0.00010133,2]
[352337947,1739046632343,-500.0,0.00010133,2]
[352337949,1739046632352,-500.0,0.00010133,2]
[352337951,1739046632361,-515.97,0.00010133,2]
[352337953,1739046632371,-500.0,0.00010133,2]
[352337955,1739046632380,-500.0,0.00010133,2]
[352337957,1739046632389,-500.0,0.00010133,2]
[352337959,1739046632399,-500.0,0.00010133,2]
[352337961,1739046632408,-500.0,0.00010133,2]
[352337963,1739046632417,-500.0,0.00010133,2]
[352337965,1739046632426,-500.0,0.00010133,2]
[352337967,1739046632436,-500.0,0.00010133,2]
[352337969,1739046632447,-500.0,0.00010133,2]
[352337971,1739046632456,-500.0,0.00010133,2]
[352337973,1739046632465,-500.0,0.00010133,2]
[352337975,1739046632475,-500.0,0.00010133,2]
[352337977,1739046632484,-500.0,0.00010133,2]
[352337979,1739046632493,-500.0,0.00010133,2]
[352337981,1739046632502,-500.0,0.00010133,2]
[352337983,1739046632511,-500.0,0.00010133,2]
[352337985,1739046632520,-500.0,0.00010133,2]
[352337987,1739046632530,-500.0,0.00010133,2]
[352337989,1739046632540,-500.0,0.00010133,2]
[352337991,1739046632549,-500.0,0.00010133,2]
[352337993,1739046632558,-500.0,0.00010133,2]